bitfinex/quotes_SOLUSD_20260226
["timestamp","ask_amount","ask_price","bid_price","bid_amount"]
[1772097294754,11.29526458,88.533,88.493,0.72636139]
[1772097295340,0.78410134,88.529,88.493,0.72636139]
[1772097296472,0.82012028,88.527,88.493,0.72636139]
[1772097296644,0.82012028,88.509,88.47,0.84666606]
[1772097296834,9.40287022,88.5,88.47,0.84666606]
[1772097297040,0.82012028,88.499,88.46,9.40287022]
[1772097297253,0.82012028,88.499,88.461,11.30441663]
[1772097297453,0.82012028,88.499,88.462,0.84666606]
[1772097298036,9.40287022,88.51,88.462,0.84666606]
[1772097298246,9.40287022,88.51,88.471,0.84666606]
[1772097298966,12.11840633,88.509,88.471,0.84666606]
[1772097299137,0.82012028,88.508,88.471,0.84666606]
[1772097300444,9.40287022,88.49,88.451,0.84666606]
[1772097300757,9.40287022,88.49,88.45,9.51530303]
[1772097300758,45.16966856,88.555,88.482,11.30173368]
[1772097300940,45.15899312,88.576,88.49,0.84666606]
[1772097300941,0.82012028,88.529,88.49,0.84666606]
[1772097301140,0.14216157,88.537,88.462,0.84666606]
[1772097301141,0.82012028,88.509,88.462,0.84666606]
[1772097301372,0.82012028,88.499,88.462,0.84666606]
[1772097301577,9.40287022,88.49,88.462,0.84666606]
[1772097301772,0.82012028,88.499,88.462,0.84666606]
[1772097301940,0.82012028,88.499,88.463,11.30416106]
[1772097302137,0.82012028,88.499,88.464,0.84666606]
[1772097302977,11.29969038,88.498,88.464,0.84666606]
[1772097303345,11.29969038,88.498,88.452,0.84666606]
[1772097303346,0.82012028,88.489,88.452,0.84666606]
[1772097303548,9.40287022,88.49,88.452,0.84666606]
[1772097303767,0.82012028,88.489,88.452,0.84666606]
[1772097304151,0.82012028,88.469,88.45,0.11243281]
[1772097304350,39.54891635,88.498,88.419,0.84666606]
[1772097304351,0.82012028,88.459,88.419,0.84666606]
[1772097304653,9.40287022,88.47,88.421,0.84666606]
[1772097304852,84.7476779,88.498,88.392,45.2527434]
[1772097304853,0.82012028,88.479,88.433,0.84666606]
[1772097305171,9.40287022,88.47,88.433,0.84666606]
[1772097305352,9.4777791,88.47,88.433,0.84666606]
[1772097305541,9.4777791,88.47,88.432,11.30812375]
[1772097305542,11.29624336,88.526,88.451,0.84666606]
[1772097305749,45.16683928,88.561,88.48,9.4777791]
[1772097305750,0.82012028,88.519,88.48,9.4777791]
[1772097306249,0.82012028,88.519,88.48,10.32444516]
[1772097306444,0.82012028,88.519,88.481,0.84666606]
[1772097306847,0.82012028,88.519,88.435,3.69383402]
[1772097306848,11.29969038,88.498,88.461,0.84666606]
[1772097307059,0.82012028,88.499,88.46,9.4777791]
[1772097307060,0.82012028,88.499,88.463,0.84666606]
[1772097307257,11.29909225,88.503,88.463,0.84666606]
[1772097308168,11.29845546,88.508,88.463,0.84666606]
[1772097308348,11.29845546,88.508,88.47,10.32444516]
[1772097308665,11.29845546,88.508,88.471,0.84666606]
[1772097309969,9.4777791,88.5,88.471,0.84666606]
[1772097310267,11.29845546,88.508,88.472,11.30301112]
[1772097310449,11.29845546,88.508,88.472,12.14967718]
[1772097310846,0.82012028,88.499,88.466,11.30370428]
[1772097311370,0.82012028,88.489,88.45,10.32444516]
[1772097311567,9.4777791,88.47,88.44,0.84666606]
[1772097311760,9.4777791,88.46,88.427,0.84666606]
[1772097311965,11.30467222,88.459,88.427,0.84666606]
[1772097312270,9.4777791,88.44,88.405,11.31157739]
[1772097312569,9.4777791,88.45,88.411,0.84666606]
[1772097312948,9.4777791,88.44,88.411,0.84666606]
[1772097313157,9.4777791,88.45,88.411,0.84666606]
[1772097313367,9.4777791,88.44,88.405,11.31157739]
[1772097314566,10.29789938,88.45,88.411,0.84666606]
[1772097314946,9.4777791,88.44,88.411,0.84666606]
[1772097315765,0.82012028,88.448,88.411,0.84666606]
[1772097315962,9.4777791,88.44,88.411,0.84666606]
[1772097317575,9.4777791,88.46,88.431,0.84666606]
[1772097318470,9.4777791,88.48,88.441,0.84666606]
[1772097318687,9.4777791,88.48,88.451,0.84666606]
[1772097319386,11.30071194,88.49,88.461,0.84666606]
[1772097319387,20.77849104,88.49,88.461,0.84666606]
[1772097320463,21.59861132,88.49,88.45,10.32444516]
[1772097320719,9.4777791,88.48,88.45,0.84666606]
[1772097321088,11.30008923,88.495,88.452,0.84666606]
[1772097321278,20.77728799,88.5,88.461,0.84666606]
[1772097321671,20.77728799,88.5,88.463,0.84666606]
[1772097322767,20.77728799,88.5,88.452,0.84666606]
[1772097322768,9.4777791,88.49,88.452,0.84666606]
[1772097322968,0.82012028,88.489,88.452,0.84666606]
[1772097323264,39.54809646,88.5,88.461,0.84666606]
[1772097323265,0.82012028,88.499,88.461,0.84666606]
[1772097323864,0.82012028,88.499,88.463,0.84666606]
[1772097324062,9.4777791,88.49,88.456,11.30498714]
[1772097324261,9.4777791,88.49,88.453,0.84666606]
[1772097324262,9.4777791,88.48,88.453,0.84666606]
[1772097324469,0.82012028,88.489,88.455,0.84666606]
[1772097324670,39.54891635,88.498,88.46,9.4777791]
[1772097324671,11.29969038,88.498,88.46,9.4777791]
[1772097324867,11.29969038,88.498,88.455,0.84666606]
[1772097324868,9.4777791,88.49,88.455,0.84666606]
[1772097325262,9.4777791,88.48,88.455,0.84666606]
[1772097325502,9.4777791,88.48,88.45,9.4777791]
[1772097325670,39.54891635,88.498,88.443,0.84666606]
[1772097325671,9.4777791,88.47,88.443,0.84666606]
[1772097326912,9.4777791,88.47,88.444,11.30658948]
[1772097328397,9.4777791,88.47,88.442,0.84678046]
[1772097329094,0.87979496,88.489,88.451,0.84678046]
[1772097329294,9.4777791,88.48,88.451,0.84678046]
[1772097329495,9.4777791,88.48,88.443,11.30671732]
[1772097329496,0.87979496,88.479,88.443,11.30671732]
[1772097329874,0.87979496,88.479,88.444,0.84678046]
[1772097330876,0.28432314,88.507,88.444,0.84678046]
[1772097330877,9.4777791,88.47,88.444,0.84678046]
[1772097331077,0.87979496,88.477,88.444,0.84678046]
[1772097331473,0.87979496,88.477,88.446,0.84678046]
[1772097332097,9.4777791,88.48,88.445,11.30646164]
[1772097332098,0.87979496,88.499,88.46,9.4777791]
[1772097332393,9.4777791,88.49,88.46,0.84678046]
[1772097332598,10.35757406,88.49,88.46,0.84678046]
[1772097334589,10.35757406,88.49,88.45,9.4777791]
[1772097334590,0.87979496,88.488,88.452,11.30554874]
[1772097334793,0.87979496,88.488,88.452,12.1523292]
[1772097335295,0.87979496,88.488,88.453,0.84678046]
[1772097335718,0.85856061,88.479,88.442,0.86016216]
[1772097335900,0.85856061,88.479,88.443,11.30671732]
[1772097336093,0.85856061,88.479,88.443,12.16687948]
[1772097336285,0.85856061,88.479,88.444,0.86016216]
[1772097336693,0.85856061,88.479,88.323,62.2]
[1772097336694,0.85856061,88.487,88.451,0.86016216]
[1772097336888,9.4777791,88.48,88.451,0.86016216]
[1772097337099,0.85856061,88.479,88.445,11.30646164]
[1772097337494,0.85856061,88.479,88.446,0.86016216]
[1772097339387,0.85856061,88.477,88.446,0.86016216]
[1772097342023,0.85856061,88.475,88.44,9.4777791]
[1772097342315,0.85856061,88.469,88.437,0.86016216]
[1772097342818,0.85856061,88.469,88.439,0.86016216]
[1772097342994,0.85856061,88.469,88.438,11.30735656]
[1772097343490,0.85856061,88.469,88.439,0.86016216]
[1772097343691,0.85856061,88.469,88.441,0.86016216]
[1772097344491,11.30352217,88.468,88.441,0.86016216]
[1772097344705,0.85856061,88.467,88.441,0.86016216]
[1772097345299,0.85856061,88.467,88.433,12.16804433]
[1772097345808,11.30352217,88.468,88.314,11.30352217]
[1772097345809,9.4777791,88.45,88.411,0.86016216]
[1772097346000,0.85856061,88.449,88.411,0.86016216]
[1772097346394,11.30607814,88.448,88.413,0.86016216]
[1772097347590,0.85856061,88.447,88.415,0.86016216]
[1772097347791,0.85856061,88.447,88.381,45.25833245]
[1772097347792,0.85856061,88.439,88.406,0.86016216]
[1772097348187,9.4777791,88.44,88.411,0.86016216]
[1772097349997,11.30722871,88.439,88.411,0.86016216]
[1772097350495,9.4777791,88.43,88.407,11.3113215]
[1772097350916,0.85856061,88.438,88.407,12.17148366]
[1772097351093,0.85856061,88.438,88.408,0.86016216]
[1772097352407,9.4777791,88.44,88.38,0.2]
[1772097352408,0.85856061,88.436,88.395,0.86016216]
[1772097352621,9.4777791,88.41,88.382,0.86016216]
[1772097352918,39.57619547,88.437,88.38,0.2]
[1772097352919,9.4777791,88.4,88.38,0.2]
[1772097353801,9.4777791,88.39,88.38,0.2]
[1772097355009,0.85856061,88.388,88.36,0.2]
[1772097355726,11.31362499,88.389,88.362,0.86016216]
[1772097356212,9.4777791,88.38,88.362,0.86016216]
[1772097356389,9.4777791,88.38,88.36,0.2]
[1772097357419,28.28045834,88.401,88.36,0.2]
[1772097357420,9.4777791,88.39,88.362,0.90163202]
[1772097358616,0.90720079,88.389,88.362,0.90163202]
[1772097358999,39.59276017,88.4,88.36,0.2]
[1772097359000,9.4777791,88.38,88.36,0.2]
[1772097359200,45.23926118,88.419,88.36,0.2]
[1772097359201,9.4777791,88.37,88.36,0.2]
[1772097359520,9.4777791,88.37,88.35,0.2]
[1772097359521,0.90720079,88.369,88.35,0.2]
[1772097360609,0.90720079,88.359,88.32,1.10163202]
[1772097360917,9.4777791,88.35,88.321,0.90163202]
[1772097361219,11.31874724,88.349,88.321,0.90163202]
[1772097362910,0.90720079,88.373,88.322,0.90163202]
[1772097363111,9.4777791,88.36,88.331,0.90163202]
[1772097363418,9.4777791,88.37,88.333,0.90163202]
[1772097363610,9.4777791,88.36,88.333,0.90163202]
[1772097363818,0.90720079,88.368,88.333,0.90163202]
[1772097364214,0.90720079,88.368,88.331,11.32101439]
[1772097364215,0.90720079,88.387,88.341,0.90163202]
[1772097364407,9.4777791,88.38,88.341,0.90163202]
[1772097365209,10.38497989,88.38,88.341,0.90163202]
[1772097365411,21.69983031,88.38,88.342,11.31964411]
[1772097365610,10.38497989,88.38,88.351,0.90163202]
[1772097366004,0.90720079,88.399,88.361,0.90163202]
[1772097366227,9.4777791,88.39,88.361,0.90163202]
[1772097366420,10.38497989,88.39,88.361,0.90163202]
[1772097367325,12.22082502,88.39,88.361,0.90163202]
[1772097367623,21.71595898,88.39,88.361,0.90163202]
[1772097369021,9.49513396,88.38,88.361,0.90163202]
[1772097369632,11.31375299,88.388,88.361,0.90163202]
[1772097370531,9.49513396,88.38,88.357,0.90163202]
[1772097371732,9.49513396,88.38,88.357,12.21925484]
[1772097376235,9.49513396,88.38,88.358,0.90163202]
[1772097376625,9.49513396,88.39,88.361,0.90163202]
[1772097377335,20.80868285,88.39,88.361,0.90163202]
[1772097377536,9.49513396,88.38,88.352,0.90163202]
[1772097377832,11.31354889,88.39,88.342,0.90163202]
[1772097377833,0.90720079,88.369,88.342,0.90163202]
[1772097378223,9.49513396,88.37,88.326,28.30423657]
[1772097378224,9.49513396,88.37,88.344,0.90163202]
[1772097378428,12.2224302,88.377,88.344,0.90163202]
[1772097379437,11.31522941,88.377,88.344,0.90163202]
[1772097379641,9.49513396,88.39,88.361,0.90163202]
[1772097380331,10.40233475,88.39,88.363,0.90163202]
[1772097380541,21.71586914,88.39,88.363,0.90163202]
[1772097381631,9.49513396,88.38,88.353,0.90163202]
[1772097381938,10.40233475,88.38,88.353,0.90163202]
[1772097382438,9.49513396,88.37,88.353,0.90163202]
[1772097382650,0.90720079,88.378,88.353,0.90163202]
[1772097383348,9.49513396,88.37,88.353,0.90163202]
[1772097385435,9.49513396,88.37,88.342,0.90163202]
[1772097385619,11.31618554,88.369,88.342,0.90163202]
[1772097385825,0.93367195,88.359,88.321,0.88165226]
[1772097386836,11.31759433,88.358,88.322,0.88165226]
[1772097387638,0.93367195,88.357,88.322,0.88165226]
[1772097389134,0.93367195,88.357,88.324,0.88165226]
[1772097390539,0.93367195,88.369,88.331,0.88165226]
[1772097390745,9.49513396,88.37,88.341,0.88165226]
[1772097391329,3.54636507,88.37,88.342,0.88165226]
[1772097392747,45.25056164,88.397,88.32,0.2]
[1772097392748,0.93367195,88.349,88.32,0.2]
[1772097392932,0.93367195,88.339,88.32,0.2]
[1772097393130,0.93367195,88.339,88.312,0.88165226]
[1772097393131,3.54636507,88.33,88.292,0.88165226]
[1772097393534,0.93367195,88.319,88.292,0.88165226]
[1772097393741,3.54636507,88.31,88.292,0.88165226]
[1772097393934,3.54636507,88.31,88.286,11.32678302]
[1772097393935,4.48003702,88.3,88.268,11.329134]
[1772097394239,3.54636507,88.31,88.27,3.54636507]
[1772097394552,15.80383982,88.31,88.271,11.32874896]
[1772097394753,0.93367195,88.309,88.271,11.32874896]
[1772097395953,0.93367195,88.309,88.272,0.88816235]
[1772097396746,0.94276795,88.307,88.274,0.88816235]
[1772097398353,0.94276795,88.299,88.274,0.88816235]
[1772097398948,0.94276795,88.298,88.274,0.88816235]
[1772097399137,0.94276795,88.298,88.27,9.51261867]
[1772097399751,0.94276795,88.303,88.271,0.88816235]
[1772097400946,0.94276795,88.304,88.273,0.88816235]
[1772097401153,0.94276795,88.304,88.281,0.88816235]
[1772097401555,0.94276795,88.317,88.281,0.88816235]
[1772097401854,28.30082814,88.337,88.291,0.88816235]
[1772097401855,0.94276795,88.329,88.291,0.88816235]
[1772097402254,0.94276795,88.309,88.273,0.88816235]
[1772097402747,0.94276795,88.299,88.267,11.59657216]
[1772097403066,0.94276795,88.297,88.268,0.88816235]
[1772097403241,0.94276795,88.309,88.271,0.88816235]
[1772097403440,0.94276795,88.309,88.28,0.88816235]
[1772097403837,9.51261867,88.3,88.27,10.40078102]
[1772097404033,0.94276795,88.299,88.27,10.40078102]
[1772097404246,0.94276795,88.299,88.271,0.88816235]
[1772097404939,11.32528483,88.298,88.271,0.88816235]
[1772097405141,0.94276795,88.297,88.271,0.88816235]
[1772097405339,9.51261867,88.3,88.273,0.88816235]
[1772097405547,10.45538662,88.3,88.273,0.88816235]
[1772097405759,9.51261867,88.31,88.281,0.88816235]
[1772097406656,10.45538662,88.31,88.281,0.88816235]
[1772097407039,10.45538662,88.31,88.282,11.32733739]
[1772097407240,0.94276795,88.309,88.281,0.88816235]
[1772097407849,0.94276795,88.299,88.273,0.88816235]
[1772097408051,0.94276795,88.299,88.268,11.32903925]
[1772097408360,0.94276795,88.299,88.268,12.2172016]
[1772097408554,0.94276795,88.299,88.269,0.88816235]
[1772097409850,11.32528483,88.298,88.269,0.88816235]
[1772097410055,0.94276795,88.297,88.269,0.88816235]
[1772097410371,11.32528483,88.298,88.267,0.2673866]
[1772097410372,10.45538662,88.29,88.267,0.2673866]
[1772097410675,9.51261867,88.28,88.26,0.2]
[1772097410970,0.94276795,88.279,88.26,0.2]
[1772097413766,11.32705687,88.285,88.26,1.08816235]
[1772097413967,12.26982482,88.285,88.26,1.08816235]
[1772097414669,0.94276795,88.284,88.26,0.2]
[1772097415062,0.94276795,88.284,88.261,0.88816235]
[1772097415949,0.94276795,88.282,88.26,0.2]
[1772097417463,11.3274657,88.281,88.26,0.2]
[1772097417655,0.97367168,88.28,88.26,0.2]
[1772097418049,0.97367168,88.299,88.262,0.96159973]
[1772097418350,0.97367168,88.299,88.271,0.96159973]
[1772097419048,11.32553933,88.297,88.271,0.96159973]
[1772097419269,0.97367168,88.296,88.271,0.96159973]
[1772097419766,0.97367168,88.294,88.271,0.96159973]
[1772097420143,0.97367168,88.315,88.281,0.96159973]
[1772097420362,0.97367168,88.309,88.274,0.96159973]
[1772097420760,0.97367168,88.309,88.28,3.55330041]
[1772097420964,0.97367168,88.328,88.291,0.96159973]
[1772097422347,0.97367168,88.324,88.292,0.96159973]
[1772097422550,0.97367168,88.324,88.29,3.55330041]
[1772097422865,0.97367168,88.291,88.26,0.2]
[1772097423047,0.97367168,88.279,88.26,0.2]
[1772097423649,0.97367168,88.279,88.243,0.96159973]
[1772097423852,3.55330041,88.29,88.253,1.11183433]
[1772097424049,0.97367168,88.297,88.261,0.96159973]
[1772097424253,0.97367168,88.295,88.261,0.96159973]
[1772097424556,0.97367168,88.289,88.253,0.1502346]
[1772097424855,0.97367168,88.279,88.253,0.1502346]
[1772097425673,0.97367168,88.269,88.253,0.1502346]
[1772097425873,0.97367168,88.269,88.231,11.3338099]
[1772097425874,0.97367168,88.269,88.231,12.29540963]
[1772097426279,12.30278725,88.269,88.233,11.333628]
[1772097426472,0.97367168,88.268,88.234,0.96159973]
[1772097426779,0.97367168,88.276,88.241,0.96159973]
[1772097426978,0.97367168,88.276,88.251,0.96159973]
[1772097428279,0.97367168,88.302,88.271,0.96159973]
[1772097428480,0.97367168,88.299,88.263,0.96159973]
[1772097429382,12.2959227,88.322,88.291,0.96159973]
[1772097429561,0.97367168,88.322,88.291,0.96159973]
[1772097430380,0.97367168,88.321,88.291,12.28769449]
[1772097430681,0.97367168,88.321,88.292,0.96159973]
[1772097430881,28.29935156,88.342,88.291,11.32609476]
[1772097430882,0.97367168,88.379,88.311,0.96159973]
[1772097431089,0.97367168,88.369,88.311,0.96159973]
[1772097431289,0.97367168,88.369,88.33,9.51880456]
[1772097432670,0.97367168,88.367,88.33,9.51880456]
[1772097433384,0.97367168,88.367,88.34,9.51880456]
[1772097433578,11.31563915,88.374,88.341,0.96159973]
[1772097433768,0.97367168,88.373,88.341,0.96159973]
[1772097434282,0.97367168,88.373,88.35,9.51880456]
[1772097434493,0.97367168,88.391,88.351,0.96159973]
[1772097434794,0.97367168,88.391,88.331,39.62368816]
[1772097434795,0.97367168,88.369,88.332,0.96159973]
[1772097436065,0.97367168,88.359,88.33,9.51880456]
[1772097436889,39.60261603,88.378,88.331,0.96159973]
[1772097436890,0.97367168,88.377,88.331,0.96159973]
[1772097437186,0.97367168,88.369,88.331,0.96159973]
[1772097437575,11.31516118,88.377,88.341,0.96159973]
[1772097437776,12.28883286,88.377,88.341,0.96159973]
[1772097437978,0.97367168,88.376,88.341,0.96159973]
[1772097438186,0.97367168,88.376,88.35,9.51880456]
[1772097438572,0.97367168,88.374,88.342,0.96159973]
[1772097440869,11.31567333,88.373,88.342,0.96159973]
[1772097441074,0.97367168,88.372,88.342,0.96159973]
[1772097442170,0.97367168,88.372,88.343,12.2811157]
[1772097442491,0.97367168,88.372,88.344,0.96159973]
[1772097442697,0.97367168,88.399,88.361,0.96159973]
[1772097442995,0.97367168,88.396,88.361,0.96159973]
[1772097443773,0.97367168,88.396,88.363,0.96159973]
[1772097445495,0.97367168,88.394,88.363,0.96159973]
[1772097445795,11.31285706,88.395,88.343,28.29878994]
[1772097445796,0.97367168,88.379,88.35,9.51880456]
[1772097446095,0.97367168,88.379,88.351,11.31849101]
[1772097446392,0.93062968,88.394,88.361,0.94475007]
[1772097447488,11.31311302,88.393,88.361,0.94475007]
[1772097447677,0.93062968,88.392,88.363,0.94475007]
[1772097448995,0.93062968,88.392,88.32,100.09794097]
[1772097448996,0.93062968,88.379,88.342,0.94475007]
[1772097449181,0.93062968,88.379,88.35,9.51880456]
[1772097450097,0.93062968,88.379,88.342,0.94475007]
[1772097450098,0.93062968,88.377,88.342,0.94475007]
[1772097451083,0.93062968,88.377,88.35,9.51880456]
[1772097451604,0.93062968,88.377,88.35,10.46355463]
[1772097452390,0.93062968,88.375,88.35,9.51880456]
[1772097453092,11.31528921,88.376,88.351,0.94475007]
[1772097453302,0.93062968,88.375,88.351,0.94475007]
[1772097454505,0.93062968,88.373,88.35,9.51880456]
[1772097454886,0.93062968,88.373,88.342,0.94475007]
[1772097456798,0.93062968,88.373,88.34,9.51880456]
[1772097456799,0.98417285,88.359,88.32,9.51880456]
[1772097456995,0.98417285,88.359,88.321,0.94254392]
[1772097457202,0.98417285,88.369,88.341,0.94254392]
[1772097457798,0.98417285,88.369,88.33,9.51880456]
[1772097458101,0.98417285,88.369,88.331,0.94254392]
[1772097458488,19.90959002,88.835,88.35,10.46134848]
[1772097458489,12.29941029,88.377,88.35,10.46134848]
[1772097458694,0.98417285,88.376,88.35,10.46134848]
[1772097458890,11.31541725,88.375,88.35,10.46134848]
[1772097459087,0.98417285,88.376,88.351,0.94254392]
[1772097459500,12.29947756,88.376,88.351,0.94254392]
[1772097460115,0.98417285,88.375,88.351,0.94254392]
[1772097460684,9.51880456,88.36,88.32,9.51880456]
[1772097460899,0.98417285,88.357,88.322,0.94254392]
[1772097461107,0.98417285,88.357,88.33,9.51880456]
[1772097462293,0.98417285,88.357,88.331,0.94254392]
[1772097463005,0.98417285,88.355,88.331,0.94254392]
[1772097463586,0.98417285,88.355,88.32,9.51880456]
[1772097464394,0.98417285,88.355,88.321,0.94254392]
[1772097464800,0.98417285,88.355,88.32,9.51880456]
[1772097464801,0.98417285,88.347,88.32,9.51880456]
[1772097465099,0.98417285,88.347,88.313,0.94254392]
[1772097465502,0.98417285,88.339,88.293,0.94254392]
[1772097465703,0.98417285,88.339,88.3,9.51880456]
[1772097466207,0.98417285,88.339,88.3,10.46134848]
[1772097466401,0.98417285,88.339,88.301,0.94254392]
[1772097466908,11.32143827,88.328,88.29,21.78765354]
[1772097467093,0.98417285,88.327,88.29,21.78765354]
[1772097467295,0.98417285,88.327,88.291,0.94254392]
[1772097468509,0.98417285,88.327,88.301,0.94254392]
[1772097469211,0.98417285,88.327,88.302,0.94254392]
[1772097469610,0.98417285,88.325,88.302,0.94254392]
[1772097469910,0.98417285,88.319,88.291,0.94254392]
[1772097470602,0.98417285,88.309,88.276,0.94254392]
[1772097470829,0.98417285,88.299,88.27,9.51880456]
[1772097471008,0.98417285,88.309,88.281,0.94254392]
[1772097471210,0.98417285,88.308,88.281,0.94254392]
[1772097471413,11.32345054,88.313,88.283,0.94254392]
[1772097471609,0.98417285,88.312,88.283,0.94254392]
[1772097471807,11.32345054,88.313,88.27,9.51880456]
[1772097471808,0.98417285,88.309,88.27,9.51880456]
[1772097472204,0.98417285,88.299,88.265,0.94254392]
[1772097473298,0.98417285,88.297,88.265,0.94254392]
[1772097474214,0.98417285,88.297,88.267,0.94254392]
[1772097474997,0.98417285,88.289,88.251,0.94254392]
[1772097475193,0.98417285,88.286,88.251,0.94254392]
[1772097475498,11.3264393,88.289,88.261,0.94254392]
[1772097475697,0.98417285,88.303,88.27,9.51880456]
[1772097475908,0.98417285,88.303,88.28,9.51880456]
[1772097476104,0.98417285,88.303,88.281,0.98455407]
[1772097477112,0.98417285,88.303,88.274,0.98455407]
[1772097477415,11.3247718,88.302,88.274,0.98455407]
[1772097478112,0.9484711,88.309,88.281,0.98455407]
[1772097478302,0.9484711,88.309,88.287,0.98455407]
[1772097478506,0.9484711,88.309,88.28,9.51880456]
[1772097479209,0.9484711,88.289,88.26,9.51880456]
[1772097479411,11.32656759,88.288,88.26,9.51880456]
[1772097479596,12.27503869,88.288,88.261,0.98455407]
[1772097480214,12.27503869,88.288,88.252,0.98455407]
[1772097480215,0.9484711,88.287,88.252,0.98455407]
[1772097480417,0.9484711,88.279,88.252,0.98455407]
[1772097480797,11.32656759,88.288,88.241,11.33260049]
[1772097480798,0.9484711,88.269,88.241,11.33260049]
[1772097481322,0.9484711,88.269,88.242,0.98455407]
[1772097482400,11.329134,88.268,88.242,0.98455407]
[1772097483528,0.9484711,88.268,88.242,0.98455407]
[1772097485219,101.91651378,88.308,88.23,0.2]
[1772097485220,11.32715803,88.284,88.251,0.98455407]
[1772097485608,0.9484711,88.284,88.251,0.98455407]
[1772097486012,0.9484711,88.284,88.253,0.98455407]
[1772097487610,0.9484711,88.279,88.244,0.98455407]
[1772097487815,0.9484711,88.277,88.244,0.98455407]
[1772097488426,9.51880456,88.26,88.233,11.33352603]
[1772097488609,39.64747728,88.278,88.23,0.2]
[1772097488610,10.46727566,88.25,88.23,0.2]
[1772097488807,0.9484711,88.249,88.23,0.2]
[1772097489715,0.9484711,88.247,88.23,0.2]
[1772097491737,28.32561041,88.26,88.23,3.75638934]
[1772097491738,0.9484711,88.256,88.23,3.75638934]
[1772097492029,0.9484711,88.256,88.23,0.2]
[1772097492237,0.9484711,88.249,88.23,0.2]
[1772097492436,0.9484711,88.239,88.213,0.98455407]
[1772097492729,0.9484711,88.239,88.209,0.98455407]
[1772097493707,0.9484711,88.228,88.201,0.98455407]
[1772097493914,3.55638934,88.22,88.201,0.98455407]
[1772097494115,3.55638934,88.22,88.19,3.75638934]
[1772097494116,0.9484711,88.209,88.19,0.2]
[1772097494416,3.55638934,88.2,88.19,0.2]
[1772097495310,0.9484711,88.202,88.19,0.2]
[1772097495514,0.9484711,88.228,88.19,0.2]
[1772097495714,40.61796751,88.229,88.191,0.98455407]
[1772097495932,40.61796751,88.229,88.201,0.98455407]
[1772097495933,12.28261293,88.229,88.201,0.98455407]
[1772097496629,0.9484711,88.228,88.201,0.98455407]
[1772097497009,11.33414183,88.229,88.19,0.2]
[1772097497010,3.55638934,88.21,88.19,0.2]
[1772097497206,0.9484711,88.209,88.19,0.2]
[1772097499012,3.55638934,88.24,88.19,0.2]
[1772097499013,12.28274139,88.228,88.2,3.55638934]
[1772097499208,0.9484711,88.227,88.2,3.55638934]
[1772097499927,0.9484711,88.219,88.19,4.74094341]
[1772097500329,0.9484711,88.217,88.19,4.74094341]
[1772097500915,0.9484711,88.217,88.191,0.98455407]
[1772097501630,11.3355551,88.218,88.191,0.98455407]
[1772097501835,11.33497659,88.223,88.192,0.98455407]
[1772097502135,3.55638934,88.28,88.211,0.98455407]
[1772097502136,0.9484711,88.244,88.211,0.98455407]
[1772097502336,11.33275988,88.24,88.211,0.98455407]
[1772097503941,15.83762032,88.24,88.211,0.98455407]
[1772097505040,11.33202591,88.246,88.211,0.98455407]
[1772097505236,11.33202591,88.246,88.22,3.55638934]
[1772097505738,12.28049701,88.246,88.219,0.98455407]
[1772097505936,1.01819476,88.245,88.219,0.98455407]
[1772097506338,11.33202591,88.246,88.16,3.55638934]
[1772097506339,1.01819476,88.239,88.202,0.99307437]
[1772097506562,11.33298578,88.238,88.202,0.99307437]
[1772097506835,11.33298578,88.238,88.16,3.55638934]
[1772097506836,1.01819476,88.209,88.182,0.99307437]
[1772097507029,1.01819476,88.209,88.183,11.34001749]
[1772097507734,1.01819476,88.209,88.18,0.2]
[1772097508743,1.01819476,88.207,88.18,0.2]
[1772097509238,11.33603161,88.215,88.19,1.19307437]
[1772097510224,1.01819476,88.219,88.191,0.99307437]
[1772097512246,1.01819476,88.217,88.191,0.99307437]
[1772097513343,9.53364153,88.22,88.191,0.99307437]
[1772097513746,20.86904447,88.22,88.193,0.99307437]
[1772097514952,1.01819476,88.219,88.193,0.99307437]
[1772097516958,0.98064562,88.217,88.193,0.99307437]
[1772097517952,9.53364153,88.24,88.201,1.00095145]
[1772097518151,0.98064562,88.239,88.207,1.00095145]
[1772097519249,0.98064562,88.237,88.207,1.00095145]
[1772097522549,0.98064562,88.249,88.211,1.00095145]
[1772097523151,0.98064562,88.239,88.211,1.00095145]
[1772097523656,9.53364153,88.23,88.211,1.00095145]
[1772097523843,0.98064562,88.249,88.211,1.00095145]
[1772097524661,0.98064562,88.247,88.213,1.00095145]
[1772097525946,9.53364153,88.24,88.209,1.00095145]
[1772097526263,9.53364153,88.24,88.211,1.00095145]
[1772097526437,0.98064562,88.245,88.211,1.00095145]
[1772097527259,12.31286084,88.244,88.213,1.00095145]
[1772097528442,12.30900957,88.274,88.213,1.00095145]
[1772097528650,0.98064562,88.272,88.241,1.00095145]
[1772097529139,11.32874896,88.271,88.243,1.00095145]
[1772097532148,11.32874896,88.271,88.25,4.55521507]
[1772097532440,11.32874896,88.271,88.251,1.00095145]
[1772097533472,0.98064562,88.259,88.214,1.00095145]
[1772097533648,0.98064562,88.249,88.214,1.00095145]
[1772097534152,4.53490924,88.24,88.214,1.00095145]
[1772097534357,0.98064562,88.239,88.214,1.00095145]